Cogmind - Beta 17.1 @@@ ROGUE MODE // 2026.08.29 @ 19:26:31 Player: Duduxx Result: Destroyed by D-53 Grenadier with Mini Grenade Launcher Performance ------------- Evolutions (0) 0 Regions Visited (2) 400 Robots Destroyed (16) 80 Value Destroyed (236) 236 Prototype IDs (0) 0 Alien Tech Used (0) 0 Bonus (0) 0 TOTAL SCORE: 716 Bonus ------- None Cogmind --------- Core Integrity 0/250 Matter 298/300 Energy 100/100 System Corruption 1% Temperature Cool (0) Movement Rolling (105) Ox1 Location -10/Mines Parts ------- > --- POWER (1) -------- (None) > --- PROPULSION (2) --- Wheel Compact Wheel > --- UTILITY (2) ------ High-capacity Storage Unit > --- WEAPON (2) ------- (None) > --- INVENTORY (20) --- Light Nuclear Core Visual Processing Unit Visual Processing Unit Particle Gun Shotgun Shotgun Peak State ------------ > --- POWER ------------ Ion Engine > --- PROPULSION ------- Light Treads Light Treads > --- UTILITY ---------- Small Storage Unit Improved Terrain Scanner > --- WEAPON ----------- EM Pulse Gun Medium Laser > --- INVENTORY -------- Ion Engine Wheel Compact Wheel Assault Rifle [Rating: 9] Favorites ----------- Power Ion Engine Engine Ion Engine Propulsion Light Treads Treads Light Treads Wheel Wheel Utility High-capacity Storage Unit Device Improved Terrain Scanner Storage High-capacity Storage Unit Processor Targeting Computer Protection Light Armor Plating Weapon Medium Laser Energy Gun Medium Laser Ballistic Gun Assault Rifle Build | -11 -10 -10 ------- Run | Yrd Mat Min Slots Evolved . | . . . Power . | . . . Propulsion . | . . . Utility . | . . . Weapon . | . . . Parts Attached 14 | 7 4 3 Power 2 | 1 . 1 Engine 2 | 1 . 1 Core . | . . . Reactor . | . . . Propulsion 4 | 2 . 2 Treads 2 | 2 . . Leg . | . . . Wheel 2 | . . 2 Hover . | . . . Flight . | . . . Utility 5 | 2 3 . Device 1 | 1 . . Storage 2 | 1 1 . Processor 1 | . 1 . Hackware . | . . . Protection 1 | . 1 . Artifact . | . . . Weapon 3 | 2 1 . Energy Gun 2 | 2 . . Energy Cannon . | . . . Ballistic Gun 1 | . 1 . Ballistic Cannon . | . . . Launcher . | . . . Special Weapon . | . . . Impact Weapon . | . . . Slashing Weapon . | . . . Piercing Weapon . | . . . Special Melee Weapon . | . . . Unidentified Prototypes . | . . . Parts Lost 8 | . 1 7 Power 2 | . . 2 Propulsion 2 | . . 2 Utility 1 | . . 1 Weapon 3 | . 1 2 Highest Loss Streak 6 | . 1 6 To Critical Strikes . | . . . Average Backups 5 | 3 4 7 Power . | . 1 . Propulsion 1 | 1 2 2 Utility 1 | . . 2 Weapon 1 | . . 2 Tool/Special . | . . . Unused Backups 6 | . . 6 Power 1 | . . 1 Propulsion . | . . . Utility 2 | . . 2 Weapon 3 | . . 3 Tool/Special . | . . . Average Slot Usage (%) 100 | . 100 100 Engine 14 | . 14 14 Treads 28 | . 28 28 Device 2 | . 5 . Storage 14 | . 14 14 Processor 9 | . 3 14 Protection 2 | . 5 . Energy Gun 14 | . 15 14 Ballistic Gun 13 | . 12 14 Peak Build Rating 9 | 9 9 8 Average Rating 7 | 5 7 7 On Entrance 5 | . 9 8 Avg Prop Armor Cover (%) . | . . . Naked Turns . | . . . Heaviest Build 52 | 15 52 49 Greatest Support 40 | 40 40 40 Greatest Overweight (x) 1 | . 1 1 Average Overweight (x) . | . . 1 Largest Inventory Capacity 20 | 8 20 20 Average Capacity 17 | 7 18 20 Most Carried 8 | 5 7 8 Average Carried 5 | 3 4 7 Final Capacity 20 | 8 20 20 Final Carried 7 | 4 7 6 Class Distribution -------------------- 100% | Mutant Dominant Class ---------------- Mutant | -10/Materials Mutant | -10/Mines Resources | -11 -10 -10 ----------- Run | Yrd Mat Min Matter Collected 447 | 235 117 95 Remotely . | . . . Salvage Created 405 | 78 189 138 Parts 27 | 9 8 10 Haulers Intercepted . | . . . Recyclers Shooed . | . . . Parts Field Recycled . | . . . Retrieved Matter . | . . . Parts Self-Destructed . | . . . Prevented . | . . . Parts Restored . | . . . Kills | -11 -10 -10 ------- Run | Yrd Mat Min Combat Hostiles Destroyed 9 | . 4 5 Guns 9 | . 4 5 Classes Destroyed 6 | 1 5 . Worker 1 | . 1 . Tunneler 4 | 4 . . Recycler 1 | . 1 . Watcher 1 | . 1 . Swarmer 6 | . 3 3 Grunt 3 | . 1 2 Best Kill Streak 5 | 3 5 3 Combat Bots Only 3 | . 3 3 Max Kills in Single Turn 2 | 1 2 1 Gunslinging . | . . . Exploded . | . . . Melee . | . . . Uniques/NPCs Destroyed . | . . . Combat | -11 -10 -10 -------- Run | Yrd Mat Min Hostile Shots Fired 94 | . 56 38 Missed 20 | . 14 6 Hits 74 | . 42 32 Projectile 74 | . 42 32 AOE 12 | . . 12 Damage Taken 1103 | . 474 629 Core 261 | . 134 127 Absorbed by Shields . | . . . Core Remaining (%) 100 | 100 . . Volleys Fired 45 | 8 20 17 Largest 2 | 2 2 2 Hottest 90 | 90 90 70 Shots Fired 86 | 16 40 30 Gun 86 | 16 40 30 Cannon . | . . . Launcher . | . . . Special . | . . . Kinetic 32 | . 19 13 Thermal 45 | 8 20 17 Explosive . | . . . Electromagnetic 9 | 8 1 . Robot Hit Streak 9 | 5 6 9 Robot Miss Streak 4 | 2 4 2 Penetration Max . | . . . Secondary Targets 3 | . 2 1 Max Gunslinging Chain 1 | . 1 1 Shots Hit Robots 47 | 8 21 18 Core Hits 20 | 4 8 8 Critical Kills . | . . . Critical Parts Destroyed . | . . . Critical Strikes 2 | 1 1 . Burn 2 | 1 1 . Melee Attacks . | . . . Impact . | . . . Slashing . | . . . Piercing . | . . . Sneak Attacks . | . . . Combat Hostiles . | . . . Follow-up Attacks . | . . . Damage Inflicted 709 | 101 382 226 Guns 589 | 101 262 226 Cannons . | . . . Explosions 111 | . 111 . Melee . | . . . Ramming 9 | . 9 . Kinetic 180 | . 93 87 Thermal 346 | 37 170 139 Explosive 90 | . 90 . Electromagnetic 84 | 64 20 . Impact . | . . . Slashing . | . . . Piercing . | . . . Highest Corruption 1 | . 1 1 Average Corruption 1 | . 1 1 Corruption Purged . | . . . Corruption Blocked . | . . . Effects 9 | . 3 6 Message Errors 2 | . 1 1 Matter Fused 6 | . 1 5 Data Loss (minor) 1 | . 1 . Overload Shots . | . . . Overflow Damage 56 | . 56 . Projectiles . | . . . Explosions 56 | . 56 . Melee . | . . . Knockbacks . | . . . Impact . | . . . Kinetic . | . . . Secondary . | . . . Self-Inflicted Damage 96 | . 96 . Shots 2 | . 2 . Rammed 1 | . 1 . Targets Rammed 2 | . 2 . Kicked . | . . . Crushed 1 | . 1 . Highest Temperature 216 | 120 216 103 Average Temperature 72 | 60 95 44 Received Heat Transfer 99 | . 48 51 Effects 1 | . 1 . Interference 1 | . 1 . Siege Activations . | . . . Martial Activations . | . . . Shielding Activations . | . . . Robots Disrupted . | . . . Combat Hostiles . | . . . Robots Corrupted . | . . . Combat Hostiles . | . . . Parts Fried . | . . . Impact Corruptions . | . . . Robots Melted . | . . . Combat Hostiles . | . . . Parts Melted 5 | . 4 1 Heat Transferred 1160 | 185 568 407 Parts Sabotaged . | . . . Parts Stolen . | . . . Parts Stripped . | . . . Power Chain Reactions 1 | . 1 . Alert | -11 -10 -10 ------- Run | Yrd Mat Min Maximum Alert Level . | . . . Low Security (%) 100 | 100 100 100 Level 1 . | . . . Level 2 . | . . . Level 3 . | . . . Level 4 . | . . . Level 5 . | . . . High Security . | . . . Max Security . | . . . Peak Influence 65 | 10 65 60 Initial . | . . . Average 13 | 1 17 14 Influence Increases 280 | 20 140 120 Destroy 0b10 Robot/C 180 | . 80 100 Destroy 0b10 Robot/NC 35 | 20 15 . Destroy Leader 32 | . 12 20 Disable Machine 15 | . 15 . Destroy Structure 18 | . 18 . Influence Decreases 280 | 20 140 120 Time Decay 268 | 20 130 118 Lost Part 12 | . 10 2 Squads Dispatched . | . . . Investigation . | . . . Extermination . | . . . Reinforcement . | . . . Assault . | . . . Garrison . | . . . Intercept . | . . . Searches Triggered . | . . . Construction Impeded . | . . . Haulers Reinforced . | . . . Active Scanning Responses . | . . . Cargo Convoy Interrupts . | . . . Stealth | -11 -10 -10 --------- Run | Yrd Mat Min Distress Signals . | . . . Communications Jammed . | . . . Distress Signals . | . . . Times Spotted 15 | . 8 7 Peak Tracking Total 3 | . 3 3 Tactical Retreats . | . . . Traps | -11 -10 -10 ------- Run | Yrd Mat Min Traps Triggered 1 | . 1 . Indirectly . | . . . Trap Hack Attempts . | . . . Triggered . | . . . Disarmed . | . . . Reprogrammed . | . . . Reused . | . . . Traps Extracted . | . . . Installed . | . . . Triggered . | . . . Machines | -11 -10 -10 ---------- Run | Yrd Mat Min Machines Disabled 1 | . 1 . Max in Single Turn 1 | . 1 . Machines Repaired . | . . . Machines Dismantled . | . . . Machines Sabotaged . | . . . Overloaded Fab Kills . | . . . Hacking | -11 -10 -10 --------- Run | Yrd Mat Min Machines Accessed . | . . . Terminals . | . . . Fabricators . | . . . Repair Stations . | . . . Recycling Units . | . . . Scanalyzers . | . . . Garrison Access . | . . . Total Hacks . | . . . Successful . | . . . Failed . | . . . Catastrophic . | . . . Database Lockouts . | . . . Manual . | . . . Terminals . | . . . Fabricators . | . . . Repair Stations . | . . . Recycling Units . | . . . Scanalyzers . | . . . Garrison Access . | . . . Terminal Hacks . | . . . Fabricator Hacks . | . . . Repair Station Hacks . | . . . Recycling Unit Hacks . | . . . Scanalyzer . | . . . Garrison Access Hacks . | . . . Unauthorized Hacks . | . . . Terminals . | . . . Fabricators . | . . . Repair Stations . | . . . Recycling Units . | . . . Scanalyzers . | . . . Garrison Access . | . . . Data Cores Recovered . | . . . Used . | . . . Hacking Detections . | . . . Full Trace Events . | . . . Feedback Events . | . . . Feedback Blocked . | . . . Robot Schematics Acquired . | . . . Robots Built . | . . . Authchips . | . . . Time . | . . . Total Robot Build Rating . | . . . Part Schematics Acquired . | . . . Parts Built . | . . . Authchips . | . . . Time . | . . . Total Part Build Rating . | . . . Part Studies Acquired . | . . . Parts Repaired . | . . . Time . | . . . Parts Recycled . | . . . Recycled Matter . | . . . Retrieved Matter . | . . . Retrieved Components . | . . . Parts Scanalyzed . | . . . Part Schematics Acquired . | . . . Parts Damaged . | . . . Bothacking | -11 -10 -10 ------------ Run | Yrd Mat Min Used RIF Installer . | . . . Robots Hacked . | . . . Non-combat . | . . . Combat . | . . . Robot Hacks Applied . | . . . Relay Couplers Released . | . . . Fabnet Peak Effective % . | . . . Robots Rewired . | . . . Allies Hacked . | . . . Hacks Repelled . | . . . Allies | -11 -10 -10 -------- Run | Yrd Mat Min Total Allies . | . . . Largest Group . | . . . Highest-Rated Group . | . . . Highest-Rated Ally . | . . . Total Orders . | . . . Ally Attacks . | . . . Total Damage . | . . . Kills . | . . . Allies Corrupted . | . . . Allies Melted . | . . . Intel | -11 -10 -10 ------- Run | Yrd Mat Min Active Infowar (turns) 157 | 24 133 . Terrain 157 | 24 133 . Robot Analysis Total . | . . . Derelict Logs Recovered . | . . . Drone Launches . | . . . Drone Recoveries . | . . . Exploration | -11 -10 -10 ------------- Run | Yrd Mat Min Turns Passed 1015 | 143 367 505 Spaces Moved 332 | 69 128 135 Core 5 | 5 . . Treads 327 | 64 128 135 Legs . | . . . Wheels . | . . . Hover . | . . . Flight . | . . . Fastest Speed 50 | 50 160 240 Average Speed 216 | 152 225 240 Slowest Speed 240 | 160 240 240 Overloaded Moves . | . . . Propulsion Burnouts . | . . . Robots Hopped . | . . . Potential Cave-ins . | . . . Cave-ins Triggered . | . . . Exploration Rate (%) 21 | 3 22 39 Regions Visited 2 Branch Regions 1 Pre-discovered Areas . | . . . Known Exits Taken . | . . . Unknown Exits Taken 2 | 1 1 . Scrap Searched . | . . . Spaces Dug . | . . . Terrain Destroyed 21 | . 21 . Melee . | . . . Projectile . | . . . AOE 21 | . 21 . Terrain Rammed . | . . . Walls Destroyed . | . . . Machines Disabled . | . . . Actions | -11 -10 -10 --------- Run | Yrd Mat Min Total 539 | 88 165 286 Wait 132 | . 3 129 Move 330 | 68 127 135 Hop . | . . . Pick Up 11 | 5 4 2 Fast Attach 8 | 6 2 . Attach 5 | 1 1 3 Detach 2 | . 2 . Swap 1 | . 1 . Drop 3 | . 3 . Fire 45 | 8 20 17 Melee . | . . . Ram . | . . . Kick . | . . . Crush 2 | . 2 . Escape Stasis . | . . . Rewire . | . . . Trap . | . . . Miscellaneous . | . . . Route ------- -11/Scrapyard -10/Materials -10/Mines History --------- Turn | Location | Event 6 | -11/Scrapyard | Discovered new exit (range 16) 144 | -11/Scrapyard | Entered Materials 317 | -10/Materials | Build established: Mutant 444 | -10/Materials | Discovered new exit (range 9) 508 | -10/Materials | Core integrity fell below 50% 511 | -10/Materials | Entered Mines 986 | -10/Mines | Assembled infested the area 991 | -10/Mines | Assisted by a Guerilla fighting off Assembled 1013 | -10/Mines | Core integrity fell below 20% 1016 | -10/Mines | Destroyed by D-53 Grenadier with Mini Grenade Launcher Last Messages --------------- 00991_ A derelict emerges from the shadows: "You need to get out of here! I've been tracking a group of Assembled to figure out where they're coming from, and they're closing on this area, come on!" 00994_ System corrupted: Matter fused (-9). 01006_ MC-ONV(h): "I'll hold them off! Go on ahead or try to find another way!" 01006_ HV Slug penetrates Wall. 01007_ U-05 Engineer destroyed. 01008_ HV Slug penetrates D-53 Grenadier. 01008_ HV Slug penetrates Wall. 01008_ MC-ONV(h) destroyed. 01010_ The unstable cave ceiling collapses. 01011_ R-06 Scavenger destroyed. 01012_ Lgt. Treads destroyed. 01014_ Assault Rifle destroyed. 01014_ Med. Laser destroyed. 01016_ Ion Engine destroyed. 01016_ Targeting Computer destroyed. Map ----- +----------------------------------------------------+ | | | | | | | | | | | | | | | ?????????????????????????????????????????????????? | | ??????????????????????????????????????????????#### | | ?????????????????????????????????????????????## | | ????????????????????????????????????????????## | | ????????????????????????????????????????????# | | ???????????????????????????????????????????## | | ???????????????????????????????????????##### | | ??????????????????????????????????????## * | | ??????????????????????????????????????# | | ??????????????????????#???????????????# | | ?????????????????????## ??????????????## | | ????????????????????##; ???????????????## | | ?????????????????????u ????????????????# | | ??????????????????????; #####???????????# # | | ????????????????????### ###?????????# # | | ????????????????????# dd #?????????## # | | ????????????????????# ######?????### # | | ??????????????????### # #######?## | | ??????????????????# @ #??# | | ??????????????????# t #??# | | ??????????????????# # =*### #### | | ????????????????????# =%[## | | ????????????????????### #### != ## ### | | ??????????????????????#### ##??## ## #?# ### | | ?????????????????????????# #????# ### #?#####?? | | ?????????????????????????# #???? ##?# #???????? | | ?????????????????????????# #???? #??# #???????? | | ?????????????????????????#|!#??? #??# #???????? | | ?????????????????????????#=%#??? #??# ###?????? | | ????????????????????????? =#??? ##??# #?????? | | ????????????????????????? #?? #????# #?????? | | ?????????????????????????####?? #?????#### #?????? | | ??????????????????????????????? ???????### #?????? | | ?????????????????????????????? ??????## ##????? | | ?????????????????????????????? ######## ##???? | | ??????????????????????????? #???? | | ??????????????????????????? ##?## | | ??????????????????????????? ####### ### | | ??????????????????????????? ?????????# | | ?????????????????????????????????????# | | ?????????????????????????????????????## ### | | ??????????????????????????????????????####?#### | | ??????????????????????????????????????????????## | +----------------------------------------------------+ Best States ------------- Heat Dissipation 25 Energy Generation 10 Energy Capacity 250 Matter Stores 300 Matter Capacity 300 Sight Range 16 Terrain Scan Range 16 Terrain Scan Density 10 Armor Coverage 150 Evasion (%) 40 Targeting Accuracy 5 Recoil Reduction 2 Item Schematics ----------------- None Robot Schematics ------------------ None Fabricated ------------ Nothing Repaired ---------- Nothing Studied --------- None Alien Tech Used ----------------- None Achievements -------------- None Challenges ------------ None Game ------ Seed ScimitarMicroDevice Manual? 0 Play Time 00:06:32 Cumulative 143.0 hours Start 2026.08.29 @ 19:21:50 End 2026.08.29 @ 19:26:31 Sessions 1 Manual Loads 0 Difficulty Rogue Special Mode None Game No. 267 Rogue 267 Adventurer 0 Explorer 0 Win Type - Total 0 Types 0/0/0/0/0/0/0/0/0/0 Lore% 36 Gallery% 47 Achievement% 30 Wizard Run 0 Options --------- Layout 1 ASCII 0 Keyboard 1 Movement Arrows Keybinds 0 Fullscreen 2 Font 24/Smallcaps Map View 50x35 Zoom Use 0% Tactical HUD 1 Map Filters NONE Filters NONE Steam 1 RUN: e4e303ef-a033-44e5-bb00-82a255b33bd3